bitfinex-derivatives/quotes_SOLF0:USTF0_20250114
["timestamp","ask_amount","ask_price","bid_price","bid_amount"]
[1736870584361,2.6868,186.16,186.13,1.6421]
[1736870584660,19.6202385,186.19,186.1,1.6084]
[1736870586261,2.6872,186.13,186.1,1.6084]
[1736870586463,19.6202385,186.19,186.1,1.6084]
[1736870586757,2.6872,186.13,186.1,1.6084]
[1736870587260,2.6873,186.13,186.08,2.6879]
[1736870587456,2.6873,186.13,186.07,1.561]
[1736870588055,19.6202385,186.19,186.07,1.561]
[1736870588666,2.6875,186.11,186.07,4.249]
[1736870588858,13.6402385,186.16,186.07,1.561]
[1736870589857,13.6402385,186.16,186.07,17.8892385]
[1736870590058,13.6402385,186.16,186.07,1.561]
[1736870590361,2.6876,186.11,186.07,1.561]
[1736870590565,6.06,186.12,186.07,1.561]
[1736870591661,2.6877,186.1,186.07,1.561]
[1736870593257,6.1,186.2,186.09,13.6402385]
[1736870593458,13.6402385,186.2,186.09,13.6402385]
[1736870593667,2.6872,186.13,186.09,16.3278385]
[1736870593966,6.12,186.19,186.09,16.3278385]
[1736870594264,6.12,186.19,186.06,1.5919]
[1736870594265,2.6876,186.11,186.06,1.5919]
[1736870594865,2.6878,186.09,186.06,1.5919]
[1736870595067,6.12,186.12,186.06,1.5919]
[1736870595361,6.12,186.12,186.04,15.2804385]
[1736870595362,2.6882,186.06,186.04,1.6402]
[1736870596366,2.6881,186.07,186.04,1.6402]
[1736870596670,13.6402385,186.08,185.98,3.1326]
[1736870596868,13.6402385,186.08,185.98,5.8219]
[1736870597167,13.6402385,186.05,185.98,3.1326]
[1736870597466,6.18,186.04,185.98,3.1326]
[1736870597870,6.18,186.04,186.0,2.689]
[1736870598062,6.18,186.04,185.98,3.1326]
[1736870598562,6.18,186.04,186.01,2.6889]
[1736870598957,1.6035,186.17,186.07,2.688]
[1736870599165,6.2,186.16,186.06,13.6402385]
[1736870599365,2.6872,186.13,186.06,13.6402385]
[1736870599564,13.6402385,186.14,186.06,2.6882]
[1736870599960,13.6402385,186.14,186.03,13.6402385]
[1736870600164,13.6402385,186.14,186.05,2.6883]
[1736870600568,2.6878,186.09,186.05,2.6883]
[1736870600966,6.2,186.09,186.0,13.6402385]
[1736870601273,13.6402385,186.08,185.98,3.1326]
[1736870601461,13.6402385,186.08,186.01,2.6889]
[1736870601661,2.6883,186.05,185.98,3.1326]
[1736870601866,13.6402385,186.08,185.98,3.1326]
[1736870602062,13.6402385,186.08,185.99,2.6892]
[1736870602264,2.6887,186.03,185.99,2.6892]
[1736870602465,13.6402385,186.05,185.98,3.1326]
[1736870602967,2.6886,186.03,185.99,2.6891]
[1736870603368,13.6402385,186.11,185.98,16.7728385]
[1736870603569,6.24,186.1,186.01,13.6402385]
[1736870604671,6.24,186.09,186.01,13.6402385]
[1736870604867,2.6879,186.08,186.01,13.6402385]
[1736870605376,6.24,186.09,186.01,13.6402385]
[1736870605570,6.24,186.09,186.04,13.6402385]
[1736870605770,13.6402385,186.16,186.05,1.6647]
[1736870605972,2.6872,186.13,186.09,2.6876]
[1736870606170,6.24,186.15,186.07,13.6402385]
[1736870606573,6.24,186.15,186.05,5.0191]
[1736870606872,13.6402385,186.13,186.05,5.0191]
[1736870607069,2.6878,186.09,186.05,5.0191]
[1736870607272,13.6402385,186.13,186.05,3.3553]
[1736870607475,2.6884,186.05,186.01,2.6889]
[1736870607666,6.24,186.08,185.99,13.6402385]
[1736870607865,13.6402385,186.07,185.96,16.8851385]
[1736870608669,13.6402385,186.07,185.96,3.2449]
[1736870608977,13.6402385,186.02,185.96,3.2449]
[1736870609277,2.6891,186.0,185.96,5.9344]
[1736870609675,2.6891,186.0,185.96,3.2449]
[1736870609974,6.24,186.02,185.96,3.2449]
[1736870611171,8.9288,186.02,185.97,2.6894]
[1736870611377,6.24,186.02,185.94,13.6402385]
[1736870612274,2.6892,185.99,185.95,2.6897]
[1736870612477,13.6402385,185.98,185.87,4.9755]
[1736870612683,13.6402385,185.98,185.85,13.6402385]
[1736870612876,13.6402385,185.95,185.84,13.6402385]
[1736870613181,6.32,185.94,185.83,15.3525385]
[1736870613570,6.32,185.94,185.83,1.7123]
[1736870613873,13.6402385,185.95,185.83,15.3525385]
[1736870614177,6.54,185.97,185.86,13.6402385]
[1736870614378,6.54,185.97,185.89,13.6402385]
[1736870614777,13.6402385,186.02,185.92,13.6402385]
[1736870614974,6.54,186.01,185.96,2.6895]
[1736870615173,8.2119,186.07,185.98,13.6402385]
[1736870615374,6.54,186.07,185.98,13.6402385]
[1736870616477,6.54,186.07,186.01,2.6889]
[1736870616780,6.54,186.07,186.01,13.6402385]
[1736870617282,6.54,186.07,185.98,13.6402385]
[1736870617480,6.54,186.07,185.97,1.6479]
[1736870617683,6.54,186.07,185.78,29.65198221]
[1736870617879,21.98356668,185.99,185.86,1.6479]
[1736870618081,6.6,185.98,185.86,1.6479]
[1736870618280,2.6903,185.92,185.86,4.339]
[1736870618481,6.6,185.98,185.86,4.339]
[1736870618482,1.6504,185.97,185.86,1.6479]
[1736870618681,21.98356668,185.96,185.86,1.6479]
[1736870618881,21.98356668,185.96,185.83,1.6472]
[1736870619284,9.3296,185.97,185.9,2.6904]
[1736870619583,6.64,185.97,185.88,1.6026]
[1736870620375,6.64,185.97,185.9,21.98356668]
[1736870620876,1.6311,186.05,185.91,1.6201]
[1736870621077,6.66,186.03,185.91,1.6201]
[1736870621981,2.6893,185.99,185.93,2.6899]
[1736870622384,2.6893,185.99,185.91,1.6201]
[1736870622681,6.66,186.03,185.91,1.6201]
[1736870623679,2.6894,185.98,185.92,2.6901]
[1736870623884,11.85497675,186.03,185.91,1.6201]
[1736870624083,2.6892,185.99,185.91,4.3104]
[1736870624283,6.7,185.99,185.91,1.6201]
[1736870624485,6.7,185.99,185.89,1.6935]
[1736870624679,2.6899,185.95,185.89,4.384]
[1736870625080,2.6899,185.95,185.89,1.6935]
[1736870625987,2.6899,185.95,185.9,2.6905]
[1736870626789,2.6896,185.97,185.89,1.6935]
[1736870627287,2.6896,185.97,185.93,2.69]
[1736870627491,5.19497675,186.04,185.92,21.98356668]
[1736870627685,6.7,186.04,185.93,1.5896]
[1736870627894,2.689,186.01,185.96,2.6896]
[1736870628098,6.7,186.04,185.96,2.6896]
[1736870628402,6.7,186.04,185.97,2.6895]
[1736870628985,6.7,186.04,185.93,1.5896]
[1736870629187,2.6892,186.0,185.93,1.5896]
[1736870629393,6.7,186.04,185.93,1.5896]
[1736870629593,2.6885,186.04,185.96,2.6896]
[1736870629791,2.6885,186.04,185.95,21.98356668]
[1736870629981,2.6885,186.04,185.96,1.6269]
[1736870630188,2.6885,186.04,185.99,2.6891]
[1736870630382,2.6885,186.04,185.98,21.98356668]
[1736870630688,2.6886,186.03,185.97,1.5773]
[1736870630889,6.72,186.05,185.98,21.98356668]
[1736870631186,2.6882,186.06,185.98,21.98356668]
[1736870631383,2.6882,186.06,186.01,2.6888]
[1736870631584,2.6882,186.06,185.98,21.98356668]
[1736870631789,2.6882,186.06,186.0,2.689]
[1736870631991,2.6882,186.06,185.98,21.98356668]
[1736870632585,2.6878,186.09,186.01,21.98356668]
[1736870632792,6.72,186.1,185.97,21.98356668]
[1736870633097,2.6881,186.07,185.98,1.5893]
[1736870633394,1.6373,186.12,185.98,1.5893]
[1736870633395,6.72,186.09,185.98,1.5893]
[1736870633692,2.6882,186.06,185.98,1.5893]
[1736870633890,6.72,186.09,185.98,1.5893]
[1736870634091,6.72,186.09,186.01,2.6889]
[1736870634285,2.6886,186.04,185.98,1.5893]
[1736870634485,6.72,186.09,185.98,1.5893]
[1736870635593,2.6889,186.01,185.98,1.5893]
[1736870636993,2.6889,186.01,185.97,4.3055]
[1736870637193,2.6889,186.01,185.97,2.6894]
[1736870637690,6.7,186.01,185.88,4.8754]
[1736870638398,2.6897,185.96,185.88,4.8754]
[1736870638896,2.6897,185.96,185.92,2.6901]
[1736870639092,28.68356668,186.01,185.88,1.6416]
[1736870639599,28.68356668,186.01,185.9,2.6905]
[1736870639798,28.68356668,186.01,185.88,1.6416]
[1736870640301,28.68356668,186.01,185.88,3.2181]
[1736870640797,21.98356668,185.98,185.84,23.55946668]
[1736870641199,21.98356668,185.98,185.85,2.6912]
[1736870641398,21.98356668,185.98,185.84,1.5759]
[1736870641701,2.6903,185.92,185.84,1.5759]
[1736870641902,6.7,185.91,185.81,21.98356668]
[1736870642199,2.691,185.87,185.82,2.6915]
[1736870642602,2.691,185.87,185.79,1.6226]
[1736870643399,6.7,185.91,185.81,21.98356668]
[1736870643796,6.7,185.91,185.89,2.6905]
[1736870643996,6.7,185.91,185.84,21.98356668]
[1736870644398,2.6899,185.94,185.89,2.6905]
[1736870644592,6.68,185.97,185.87,21.98356668]
[1736870644795,6.68,185.97,185.9,21.98356668]
[1736870644995,5.20077034,186.03,185.88,3.3198]
[1736870644996,5.20077034,186.05,185.93,21.98356668]
[1736870645200,6.68,186.03,185.93,21.98356668]
[1736870645397,6.68,186.03,185.96,2.6896]
[1736870645795,1.6296,186.07,185.93,21.98356668]
[1736870646098,22.64315668,186.13,185.96,21.98356668]
[1736870646295,6.68,186.07,185.99,21.98356668]
[1736870646496,7.33959,186.13,186.04,2.6883]
[1736870646700,0.65959,186.13,186.02,21.98356668]
[1736870647106,0.65959,186.13,186.0,1.6031]
[1736870647107,22.64315668,186.13,186.0,1.6031]
[1736870647302,21.98356668,186.1,185.97,3.2105]
[1736870647511,2.6883,186.06,185.99,2.6892]
[1736870647807,22.64315668,186.13,185.99,21.98356668]
[1736870648011,2.688,186.07,185.99,21.98356668]
[1736870648208,22.64315668,186.13,185.99,21.98356668]
[1736870648507,21.98356668,186.1,185.97,1.5474]
[1736870648718,1.6374,186.09,185.97,1.5474]
[1736870649007,2.6883,186.06,185.97,1.5474]
[1736870649311,1.6374,186.09,185.93,1.6631]
[1736870649312,21.98356668,186.04,185.93,1.6631]
[1736870649713,21.98356668,186.04,185.91,2.6902]
[1736870650114,2.69,185.94,185.88,2.6906]
[1736870650615,2.69,185.94,185.87,3.3255]
[1736870652107,2.69,185.94,185.89,2.6906]
[1736870652309,2.6902,185.93,185.87,3.3255]
[1736870652709,2.6902,185.93,185.88,2.6908]
[1736870653718,2.6898,185.95,185.9,2.6905]
[1736870654020,5.20994499,186.02,185.89,21.98356668]
[1736870654209,5.20994499,186.06,185.92,21.98356668]
[1736870654411,1.6845,186.07,185.98,2.6893]
[1736870654717,6.68,186.06,185.95,21.98356668]
[1736870654916,6.68,186.06,185.99,2.6892]
[1736870655116,6.68,186.06,185.96,4.7216]
[1736870655712,2.6886,186.04,185.99,2.6892]
[1736870655918,6.68,186.06,185.96,4.7216]
[1736870656120,21.98356668,186.04,185.94,2.6899]
[1736870656312,21.98356668,186.04,185.89,23.53116668]
[1736870656621,6.88914791,186.03,185.89,23.53116668]
[1736870656824,1.6699,186.03,185.89,23.53116668]
[1736870657017,6.88914791,186.03,185.89,23.53116668]
[1736870657213,1.6699,186.03,185.89,23.53116668]
[1736870657413,6.68,186.02,185.92,21.98356668]
[1736870657724,2.6889,186.01,185.96,2.6895]
[1736870658225,9.3688,186.02,185.97,2.6895]
[1736870658721,9.3688,186.02,185.98,2.6893]
[1736870658921,6.68,186.02,185.92,21.98356668]
[1736870659519,2.6889,186.01,185.92,21.98356668]
[1736870659920,2.6891,186.0,185.96,2.6895]
[1736870660119,6.68,186.02,185.89,1.5476]
[1736870660521,6.68,186.02,185.91,21.98356668]
[1736870660721,6.68,186.02,185.94,21.98356668]
[1736870660923,6.68,186.02,185.97,2.6894]
[1736870661126,6.68,186.02,185.94,21.98356668]
[1736870661325,6.68,186.02,185.92,1.589]
[1736870661517,2.6892,185.99,185.95,2.6897]
[1736870661724,6.68,186.02,185.92,1.589]
[1736870662121,6.68,186.02,185.94,21.98356668]
[1736870662122,2.689,186.01,185.94,21.98356668]
[1736870662426,2.689,186.01,185.92,1.589]
[1736870662629,6.68,186.02,185.94,21.98356668]
[1736870663227,2.6893,185.99,185.94,24.67336668]
[1736870663427,6.68,186.02,185.94,2.6898]
[1736870663629,6.68,186.02,185.94,21.98356668]
[1736870663923,5.22523508,186.08,185.94,21.98356668]
[1736870664129,6.68,186.07,185.95,3.2981]
[1736870664424,11.90523508,186.07,185.97,2.6895]
[1736870664628,11.90523508,186.07,185.95,3.2981]
[1736870665025,5.22523508,186.08,185.95,3.2981]
[1736870665334,5.22523508,186.1,186.0,21.98356668]
[1736870665523,2.688,186.07,186.0,21.98356668]
[1736870665725,6.7,186.09,186.0,21.98356668]
[1736870666229,2.6883,186.06,186.02,2.6887]
[1736870666729,2.688,186.08,186.04,2.6884]
[1736870666935,7.35959,186.13,186.03,21.98356668]
[1736870667433,0.65959,186.13,186.06,21.98356668]
[1736870667837,0.65959,186.13,186.07,3.3228]
[1736870668026,0.65959,186.13,186.11,2.6874]
[1736870668229,0.65959,186.13,186.12,21.98356668]
[1736870668633,6.7,186.19,186.12,21.98356668]
[1736870668931,5.22917539,186.21,186.15,21.98356668]
[1736870669132,5.22917539,186.21,186.19,2.6863]
[1736870669332,5.22917539,186.21,186.16,1.5759]
[1736870669536,5.22917539,186.21,186.19,2.6863]
[1736870669725,5.22917539,186.21,186.16,1.5759]
[1736870669926,5.22917539,186.23,186.18,21.98356668]
[1736870670231,6.7,186.27,186.18,21.98356668]
[1736870670739,1.5699,186.35,186.25,2.6854]
[1736870670927,1.5699,186.35,186.17,1.6717]
[1736870671127,143.2399446,186.37,186.24,21.98356668]
[1736870671327,6.68,186.36,186.24,21.98356668]
[1736870672139,28.66356668,186.36,186.21,21.98356668]
[1736870672338,21.98356668,186.33,186.18,21.98356668]
[1736870672635,2.6849,186.29,186.23,2.6856]
[1736870672940,28.66356668,186.36,186.21,21.98356668]
[1736870673136,2.6846,186.31,186.26,2.6852]
[1736870673332,2.6846,186.31,186.21,21.98356668]
[1736870673527,28.66356668,186.36,186.21,21.98356668]
[1736870673732,2.6849,186.29,186.24,2.6854]
[1736870673934,28.66356668,186.36,186.18,23.59646668]
[1736870674137,21.98356668,186.33,186.18,23.59646668]
[1736870674431,27.20731978,186.36,186.21,21.98356668]
[1736870674641,6.7,186.35,186.21,21.98356668]
[1736870675037,21.98356668,186.33,186.21,2.6859]
[1736870675238,21.98356668,186.33,186.18,23.59646668]
[1736870676735,2.6847,186.3,186.24,2.6856]
[1736870676932,6.7,186.35,186.24,2.6856]
[1736870677239,2.6846,186.32,186.26,2.6853]
[1736870677432,6.68,186.35,186.24,21.98356668]
[1736870677634,6.68,186.35,186.25,1.5492]
[1736870678339,6.68,186.35,186.27,2.685]
[1736870678340,2.6845,186.32,186.27,2.685]
[1736870678636,6.68,186.36,186.27,21.98356668]
[1736870678939,2.6838,186.37,186.28,3.3978]
[1736870679134,6.68,186.4,186.28,3.3978]
[1736870679640,6.68,186.4,186.29,2.6848]
[1736870681139,6.68,186.39,186.29,2.6848]
[1736870681333,28.66356668,186.39,186.28,3.3978]
[1736870681534,2.6847,186.31,186.25,1.5492]
[1736870681932,6.66,186.31,186.25,1.5492]
[1736870682136,6.66,186.31,186.18,21.98356668]
[1736870682436,6.66,186.31,186.23,2.6857]
[1736870682641,6.66,186.31,186.18,23.58296668]
[1736870683646,2.6851,186.28,186.23,2.6856]
[1736870683837,6.66,186.31,186.21,21.98356668]
[1736870684142,6.66,186.31,186.24,21.98356668]
[1736870684344,6.66,186.31,186.25,3.2963]
[1736870685340,6.66,186.31,186.25,1.6771]
[1736870685541,6.66,186.31,186.19,1.6192]
[1736870685734,6.66,186.31,186.19,3.2963]
[1736870685934,6.66,186.31,186.21,21.98356668]
[1736870686337,6.66,186.31,186.22,2.6858]
[1736870686737,6.66,186.31,186.21,21.98356668]
[1736870687441,6.66,186.31,186.26,2.6853]
[1736870687647,6.66,186.31,186.21,21.98356668]
[1736870688649,2.685,186.28,186.23,2.6857]
[1736870689148,6.66,186.31,186.23,2.6857]
[1736870690142,6.66,186.31,186.21,21.98356668]
[1736870690346,6.66,186.31,186.19,3.2963]
[1736870690840,2.6852,186.27,186.22,2.6857]
[1736870691041,6.66,186.31,186.21,21.98356668]
[1736870691241,1.597,186.35,186.21,21.98356668]
[1736870691442,2.6853,186.27,186.23,2.6857]
[1736870691737,6.64,186.34,186.19,3.2963]
[1736870691941,2.6855,186.25,186.21,2.686]
[1736870692137,21.98356668,186.33,186.19,3.2963]
[1736870692339,2.6851,186.28,186.24,2.6856]
[1736870692742,6.64,186.34,186.21,21.98356668]
[1736870692947,6.64,186.34,186.22,2.6858]
[1736870693152,21.98356668,186.33,186.19,3.2963]
[1736870693343,2.6862,186.2,186.19,3.2963]
[1736870693545,2.6862,186.2,186.18,1.5994]
[1736870694545,2.686,186.22,186.18,1.5994]
[1736870694745,6.64,186.25,186.18,1.5994]
[1736870694940,6.64,186.25,186.18,4.2858]
[1736870695148,2.6858,186.23,186.18,23.58296668]
[1736870695545,6.64,186.25,186.18,23.58296668]
[1736870695751,6.64,186.25,186.19,3.2896]
[1736870696049,9.3256,186.25,186.21,2.6859]
[1736870696249,6.64,186.25,186.19,3.2896]
[1736870697050,2.6859,186.22,186.19,3.2896]
[1736870698053,2.6862,186.2,186.19,1.6353]
[1736870698352,2.6862,186.2,186.18,1.5994]
[1736870699153,6.64,186.25,186.18,1.5994]
[1736870699952,2.6858,186.23,186.2,2.6861]
[1736870700747,2.6858,186.23,186.19,2.6862]
[1736870700957,6.64,186.25,186.18,1.5994]
[1736870701353,2.6869,186.16,186.12,21.98356668]
[1736870701654,6.6,186.17,186.06,21.98356668]
[1736870701856,6.6,186.16,186.06,1.6717]
[1736870702959,6.6,186.16,186.04,1.6232]
[1736870702960,21.98356668,186.15,186.04,1.6232]
[1736870703160,5.18278006,186.14,186.01,1.6717]
[1736870703366,2.6884,186.05,186.01,4.3606]
[1736870703960,5.18278006,186.12,186.01,1.6717]
[1736870704168,11.78278006,186.11,186.01,1.6717]
[1736870704556,2.6879,186.08,186.01,1.6717]
[1736870704767,5.18278006,186.1,186.01,1.6717]
[1736870704959,5.18278006,186.1,185.98,2.6893]
[1736870705359,2.6884,186.05,185.98,2.6893]
[1736870705869,2.6884,186.05,185.97,21.98356668]
[1736870706071,2.6884,186.05,185.99,2.6892]
[1736870706266,2.6879,186.08,186.0,21.98356668]
[1736870706668,6.6,186.11,186.01,1.5625]
[1736870707065,11.79260478,186.11,186.01,1.5625]
[1736870707271,5.19260478,186.1,186.01,1.5625]
[1736870707468,6.6,186.11,186.01,1.5625]
[1736870708271,5.19260478,186.1,186.01,1.5625]
[1736870708475,2.6884,186.05,186.01,1.5625]
[1736870708964,5.19260478,186.1,186.01,1.5625]
[1736870709166,2.6882,186.06,186.01,4.2514]
[1736870709373,11.79260478,186.11,186.01,4.2514]
[1736870709573,7.88030478,186.1,186.05,2.6883]
[1736870709771,5.19260478,186.1,186.03,21.98356668]
[1736870709964,6.58,186.12,186.03,21.98356668]
[1736870710368,2.6878,186.09,186.05,2.6882]
[1736870710671,6.58,186.14,186.03,21.98356668]
[1736870711377,6.58,186.14,186.02,1.6591]
[1736870711566,6.58,186.14,186.01,1.5625]
[1736870711765,21.98356668,186.12,186.01,1.5625]
[1736870712071,2.6886,186.04,186.0,2.689]
[1736870713878,6.58,186.06,186.0,2.689]
[1736870714176,2.6887,186.03,186.0,2.689]
[1736870714373,6.58,186.06,185.94,2.6898]
[1736870714578,21.98356668,186.05,185.9,23.54746668]
[1736870714778,2.3305,186.05,185.9,23.54746668]
[1736870714971,2.6897,185.96,185.9,23.54746668]
[1736870715582,2.69,185.94,185.9,4.2544]
[1736870715877,6.56,185.97,185.9,1.5639]
[1736870716179,6.56,185.97,185.94,2.6899]
[1736870716480,6.56,185.97,185.9,23.54746668]
[1736870716674,6.56,185.97,185.9,1.5639]
[1736870717076,6.56,185.97,185.84,21.98356668]
[1736870717276,6.56,185.97,185.83,1.7125]
[1736870717472,2.6905,185.9,185.85,2.6911]
[1736870717778,21.98356668,185.96,185.81,21.98356668]
[1736870717979,21.98356668,185.96,185.82,1.7125]
[1736870718175,2.6906,185.9,185.85,2.6912]
[1736870718682,2.6901,185.94,185.87,2.6909]
[1736870718882,6.56,185.97,185.84,21.98356668]
[1736870719380,6.56,185.97,185.87,21.98356668]
[1736870719581,6.56,185.97,185.88,1.645]
[1736870720080,2.6898,185.96,185.9,2.6904]
[1736870720280,6.56,185.97,185.9,2.6904]
[1736870720778,6.56,185.97,185.91,2.6903]
[1736870720779,9.2496,185.97,185.91,2.6903]
[1736870721078,6.56,185.97,185.91,2.6903]
[1736870721476,6.56,185.97,185.9,21.98356668]
[1736870721783,6.54,186.01,185.9,21.98356668]
[1736870721979,6.54,186.01,185.91,1.7119]
[1736870722278,2.3305,186.05,185.91,1.7119]
[1736870722581,6.54,186.04,185.93,21.98356668]
[1736870722781,21.98356668,186.09,185.93,21.98356668]
[1736870722977,2.6885,186.04,185.99,2.6892]
[1736870723176,21.98356668,186.09,185.97,1.6185]
[1736870723479,6.54,186.09,185.99,21.98356668]
[1736870723781,28.52356668,186.09,185.98,1.634]
[1736870724383,28.52356668,186.09,185.99,2.6892]
[1736870724681,28.52356668,186.09,185.98,1.634]
[1736870725080,21.98356668,186.06,185.98,2.6893]
[1736870725679,21.98356668,186.06,185.97,1.6185]
[1736870725874,21.98356668,186.03,185.92,3.2216]
[1736870726080,6.54,186.09,185.92,3.2216]
[1736870726081,21.98356668,186.0,185.92,3.2216]
[1736870726379,6.54,186.0,185.92,3.2216]
[1736870726585,6.54,186.06,185.92,25.20516668]
[1736870727077,6.54,186.06,185.99,2.6892]
[1736870727886,2.6885,186.04,185.99,2.6892]
[1736870728276,6.52,186.06,185.99,2.6892]
[1736870728587,28.50356668,186.06,185.92,25.20516668]
[1736870728787,28.50356668,186.06,185.92,3.2216]
[1736870728980,2.6889,186.01,185.97,2.6895]
[1736870729175,21.98356668,186.03,185.92,3.2216]
[1736870729382,21.98356668,186.0,185.92,3.2216]
[1736870729682,2.6898,185.95,185.92,1.5876]
[1736870729881,21.98356668,186.0,185.92,1.5876]
[1736870730286,2.6899,185.94,185.92,1.5876]
[1736870730484,2.6899,185.94,185.9,2.6904]
[1736870730979,21.98356668,185.97,185.87,1.5568]
[1736870731184,21.98356668,185.97,185.84,3.2708]
[1736870731582,2.6903,185.92,185.87,2.6908]
[1736870731990,2.6903,185.92,185.84,3.2708]
[1736870732291,2.6903,185.92,185.88,2.6907]
[1736870732488,21.98356668,185.97,185.84,3.2708]
[1736870732489,6.56,185.98,185.84,3.2708]
[1736870732787,6.56,185.98,185.86,21.98356668]
[1736870732986,2.69,185.94,185.86,21.98356668]
[1736870733386,6.56,185.98,185.89,2.6905]
[1736870733986,2.69,185.94,185.89,2.6905]
[1736870734384,2.69,185.94,185.9,2.6905]
[1736870735888,2.6901,185.93,185.84,3.2708]
[1736870736186,28.52356668,185.97,185.88,2.6907]
[1736870736382,2.6901,185.93,185.84,3.2708]
[1736870736590,2.6901,185.93,185.89,2.6906]
[1736870736993,2.6899,185.95,185.85,21.98356668]
[1736870737193,2.6899,185.95,185.91,2.6903]
[1736870737389,1.6014,186.02,185.88,21.98356668]
[1736870737585,0.6491,186.05,185.97,2.6895]
[1736870737790,6.54,186.01,185.91,21.98356668]
[1736870737988,2.6892,186.0,185.91,21.98356668]
[1736870738389,2.6892,186.0,185.96,2.6896]
[1736870738587,6.54,186.04,185.94,21.98356668]
[1736870738790,6.54,186.04,185.95,1.6444]
[1736870738982,2.6887,186.03,185.95,3.257]
[1736870739189,6.54,186.04,185.95,4.9225]
[1736870740092,2.6895,185.97,185.95,1.6444]
[1736870740293,2.6895,185.97,185.83,6.54]
[1736870740294,6.54,186.04,185.88,21.98356668]
[1736870740486,21.98356668,186.02,185.88,21.98356668]
[1736870740686,2.6897,185.96,185.92,2.6901]
[1736870740889,21.98356668,186.02,185.92,2.6901]
[1736870741193,21.98356668,186.02,185.88,21.98356668]
[1736870741897,21.98356668,186.02,185.86,4.842]
[1736870742084,21.98356668,185.99,185.86,4.842]
[1736870742990,21.98356668,185.96,185.86,3.1765]
[1736870743197,6.54,185.95,185.86,1.5639]
[1736870748195,6.54,185.95,185.83,1.5815]
[1736870749899,6.5,185.95,185.85,21.98356668]
[1736870750095,6.5,185.95,185.86,1.666]
[1736870750903,6.5,185.95,185.83,1.5815]
[1736870751398,6.5,185.95,185.79,21.98356668]
[1736870751601,6.5,185.95,185.8,1.6651]
[1736870751901,21.98356668,185.93,185.8,1.6651]
[1736870753001,0.6508,185.94,185.8,1.6651]
[1736870753192,21.98356668,185.96,185.83,21.98356668]
[1736870753496,6.5,185.95,185.8,23.64866668]
[1736870753789,0.6508,185.97,185.83,21.98356668]
[1736870754597,21.98356668,185.96,185.8,23.64866668]
[1736870755396,0.6508,185.97,185.8,23.64866668]
[1736870755397,21.98356668,185.93,185.8,23.64866668]
[1736870755596,21.98356668,185.93,185.8,1.6651]
[1736870755998,0.6508,185.97,185.83,21.98356668]
[1736870756600,21.98356668,185.93,185.76,21.98356668]
[1736870756994,21.98356668,185.96,185.79,21.98356668]
[1736870757199,8.0426,185.98,185.85,21.98356668]
[1736870757401,171.93344941,185.98,185.85,21.98356668]
[1736870757596,6.48,185.97,185.85,21.98356668]
[1736870757993,6.48,185.97,185.82,21.98356668]
[1736870758403,21.98356668,185.96,185.82,21.98356668]
[1736870759403,21.98356668,185.93,185.8,4.9265]
[1736870760005,6.48,185.92,185.8,4.9265]
[1736870760504,6.48,185.92,185.82,21.98356668]
[1736870761508,6.48,185.95,185.85,21.98356668]
[1736870761697,167.86616024,186.02,185.88,21.98356668]
[1736870761896,6.48,186.01,185.89,4.8898]
[1736870762206,152.38259356,186.03,185.89,4.8898]
[1736870762400,21.98356668,185.99,185.89,4.8898]
[1736870762600,21.98356668,185.96,185.89,1.6124]
[1736870762798,21.98356668,185.96,185.81,21.98356668]
[1736870762799,6.52,185.95,185.81,21.98356668]
[1736870763002,21.98356668,185.93,185.82,1.6124]
[1736870763202,21.98356668,185.93,185.79,3.2445]